[Event "Biel Master Tournament 2019"]
[Site "Biel"]
[Date "2019.07.31"]
[Round "9.10"]
[White "Vaibhav, Suri"]
[Black "Bellahcene, Bilel"]
[Result "1/2-1/2"]
[ECO "B92"]
[WhiteElo "2591"]
[BlackElo "2541"]
[Annotator "ChessBase"]
[PlyCount "93"]
[EventDate "2019.07.20"]
[EventType "swiss"]
[EventCountry "SUI"]
[SourceTitle "playchess.com"]
[Source "ChessBase"]
[SourceQuality "1"]
[TimeControl "40/5400+30:1800+30"]

1. e4 {[%emt 0:00:00]} c5 {[%emt 0:05:57]} 2. Nf3 {[%emt 0:00:31]} d6 {[%emt 0:00:03]} 3. d4 {[%emt 0:00:09]} cxd4 {[%emt 0:00:03]} 4. Nxd4 {[%emt 0:00:07]} Nf6 {[%emt 0:00:03]} 5. Nc3 {[%emt 0:00:09]} a6 {[%emt 0:00:02]} 6. Be2 {[%emt 0:00:16]} e5 {[%emt 0:00:04]} 7. Nb3 {[%emt 0:00:08]} Be7 {[%emt 0:00:09]} 8. Be3 {[%emt 0:00:08]} Be6 {[%emt 0:00:06]} 9. f4 {[%emt 0:00:35]} exf4 {[%emt 0:00:10]} 10. Bxf4 {[%emt 0:00:07]} Nc6 {[%emt 0:00:02]} 11. Qd2 {[%emt 0:00:12]} d5 {[%emt 0:00:02]} 12. exd5 {[%emt 0:03:15]} Nxd5 {[%emt 0:00:28]} 13. Nxd5 {[%emt 0:01:32]} Qxd5 {[%emt 0:00:05]} 14. O-O-O {[%emt 0:00:38]} Qxg2 {[%emt 0:00:06]} 15. Rhg1 {[%emt 0:01:32]} Qe4 {[%emt 0:00:06]} 16. Rxg7 {[%emt 0:00:21]} Rd8 {[%emt 0:00:03]} 17. Qe3 {[%emt 0:00:10]} Rxd1+ {[%emt 0:00:33]} 18. Bxd1 {[%emt 0:00:26]} Qxe3+ {[%emt 0:00:03]} 19. Bxe3 {[%emt 0:00:06]} h5 {[%emt 0:00:02]} 20. Bf3 {[%emt 0:10:18]} Bg4 {[%emt 0:02:23]} 21. Bxg4 {[%emt 0:18:12]} Kf8 {[%emt 0:00:17]} 22. Bc8 {[%emt 0:03:39]} Kxg7 {[%emt 0:00:05]} 23. Bxb7 {[%emt 0:00:04]} Nb8 {[%emt 0:01:21]} 24. c4 {[%emt 0:24:25]} Bd6 {[%emt 0:17:51]} 25. h3 {[%emt 0:03:44]} Re8 {[%emt 0:04:44]} 26. Kd2 {[%emt 0:00:42]} f5 {[%emt 0:07:08]} 27. c5 {[%emt 0:04:59]} Bc7 {[%emt 0:04:29]} 28. Nd4 {[%emt 0:02:21]} Kf6 {[%emt 0:08:09]} 29. b4 {[%emt 0:02:05]} h4 {[%emt 0:08:45]} 30. a4 {[%emt 0:06:32]} Rg8 {[%emt 0:04:02]} 31. Nf3 {[%emt 0:03:07]} Rg2+ {[%emt 0:05:32]} 32. Kc3 {[%emt 0:01:51]} Rg3 {[%emt 0:01:55]} 33. Bd4+ {[%emt 0:06:20]} Ke7 {[%emt 0:01:52]} 34. Bf2 {[%emt 0:03:16]} Rxh3 {[%emt 0:14:18]} 35. Bxh4+ {[%emt 0:00:16]} Kd7 {[%emt 0:00:27]} 36. b5 {[%emt 0:00:20]} axb5 {[%emt 0:00:05]} 37. axb5 {[%emt 0:00:01]} Bd8 {[%emt 0:05:20]} 38. Bf2 {[%emt 0:00:43]} Kc7 {[%emt 0:01:39]} 39. Bd5 {[%emt 0:00:47]} Nd7 {[%emt 0:00:01]} 40. b6+ {[%emt 0:03:22]} Kb8 {[%emt 0:02:09]} 41. Kc4 {[%emt 0:07:23]} f4 {[%emt 0:07:45]} 42. Kb5 {[%emt 0:06:17]} Nxb6 {[%emt 0:02:40]} 43. cxb6 {[%emt 0:00:01]} Rh5 {[%emt 0:00:07]} 44. Kc4 {[%emt 0:00:16]} Rxd5 {[%emt 0:00:10]} 45. Kxd5 {[%emt 0:00:01]} Kb7 {[%emt 0:00:05]} 46. Ke4 {[%emt 0:01:01]} Bxb6 {[%emt 0:00:05]} 47. Kxf4 {[%emt 0:00:01]} 1/2-1/2

[Event "Biel Master Tournament 2019"]
[Site "Biel"]
[Date "2019.07.31"]
[Round "9.11"]
[White "Sedlak, Nikola"]
[Black "Shchekachev, Andrei"]
[Result "0-1"]
[ECO "B84"]
[WhiteElo "2586"]
[BlackElo "2531"]
[Annotator "ChessBase"]
[PlyCount "112"]
[EventDate "2019.07.20"]
[EventType "swiss"]
[EventCountry "SUI"]
[SourceTitle "playchess.com"]
[Source "ChessBase"]
[SourceQuality "1"]
[TimeControl "40/5400+30:1800+30"]

1. e4 {[%emt 0:00:00]} c5 {[%emt 0:00:00]} 2. Nf3 {[%emt 0:00:00]} d6 {[%emt 0:00:00]} 3. d4 {[%emt 0:00:00]} cxd4 {[%emt 0:00:02]} 4. Nxd4 {[%emt 0:00:04]} Nf6 {[%emt 0:00:08]} 5. Nc3 {[%emt 0:00:08]} a6 {[%emt 0:00:05]} 6. Be3 {[%emt 0:02:56]} Nc6 {[%emt 0:04:49]} 7. Be2 {[%emt 0:01:03]} e6 {[%emt 0:03:06]} 8. f4 {[%emt 0:05:50]} Be7 {[%emt 0:00:40]} 9. Qd2 {[%emt 0:00:11]} O-O {[%emt 0:03:22]} 10. O-O-O {[%emt 0:00:10]} Nxd4 {[%emt 0:05:37]} 11. Qxd4 {[%emt 0:00:41]} Nd7 {[%emt 0:08:07]} 12. g4 {[%emt 0:12:22]} b5 {[%emt 0:08:07]} 13. g5 {[%emt 0:06:54]} Qa5 {[%emt 0:08:20]} 14. a3 {[%emt 0:00:21]} Rb8 {[%emt 0:04:34]} 15. Na2 {[%emt 0:05:13]} Bb7 {[%emt 0:08:40]} 16. Rhg1 {[%emt 0:03:24]} Rfc8 {[%emt 0:01:00]} 17. f5 {[%emt 0:06:33]} Nc5 {[%emt 0:09:36]} 18. Nc3 {[%emt 0:00:36]} e5 {[%emt 0:16:42]} 19. Qb4 {[%emt 0:00:26]} Qc7 {[%emt 0:00:05]} 20. Nd5 {[%emt 0:04:23]} Bxd5 {[%emt 0:00:17]} 21. Rxd5 {[%emt 0:00:32]} a5 {[%emt 0:00:45]} 22. Qc3 {[%emt 0:00:45]} b4 {[%emt 0:02:43]} 23. axb4 {[%emt 0:00:25]} axb4 {[%emt 0:00:35]} 24. Qc4 {[%emt 0:00:26]} Qa5 {[%emt 0:03:37]} 25. Bxc5 {[%emt 0:00:23]} Rxc5 {[%emt 0:01:00]} 26. Rxc5 {[%emt 0:01:31]} Qa1+ {[%emt 0:00:28]} 27. Kd2 {[%emt 0:00:24]} Qxg1 {[%emt 0:00:04]} 28. Rc8+ {[%emt 0:01:01]} Rxc8 {[%emt 0:00:04]} 29. Qxc8+ {[%emt 0:00:05]} Bf8 {[%emt 0:00:03]} 30. Bc4 {[%emt 0:06:01]} Qxh2+ {[%emt 0:01:15]} 31. Kd3 {[%emt 0:00:30]} Qg3+ {[%emt 0:00:19]} 32. Ke2 {[%emt 0:00:14]} Qg4+ {[%emt 0:00:54]} 33. Kd3 {[%emt 0:01:50]} Qf3+ {[%emt 0:01:24]} 34. Kd2 {[%emt 0:00:06]} Qf2+ {[%emt 0:02:16]} 35. Kd1 {[%emt 0:00:19]} Qd4+ {[%emt 0:00:49]} 36. Kc1 {[%emt 0:00:11]} Qg1+ {[%emt 0:00:28]} 37. Kd2 {[%emt 0:00:05]} Qd4+ {[%emt 0:01:09]} 38. Kc1 {[%emt 0:00:10]} Qg1+ {[%emt 0:00:02]} 39. Kd2 {[%emt 0:00:04]} Qxg5+ {[%emt 0:00:06]} 40. Kd3 {[%emt 0:00:07]} Qg3+ {[%emt 0:03:00]} 41. Ke2 {[%emt 0:31:09]} Qg4+ {[%emt 0:32:25]} 42. Kd3 {[%emt 0:05:17]} Qh3+ {[%emt 0:00:00]} 43. Kd2 {[%emt 0:00:00]} Qh6+ {[%emt 0:00:00]} 44. Kd3 {[%emt 0:00:00]} g5 {[%emt 0:00:00]} 45. fxg6 {[%emt 0:00:00]} hxg6 {[%emt 0:00:00]} 46. Bd5 {[%emt 0:00:00]} Qc1 {[%emt 0:00:00]} 47. Ke2 {[%emt 0:00:00]} Kg7 {[%emt 0:00:00]} 48. Qc7 {[%emt 0:00:00]} Qf4 {[%emt 0:00:00]} 49. Qb7 {[%emt 0:00:00]} g5 {[%emt 0:00:34]} 50. Qxb4 {[%emt 0:00:00]} g4 {[%emt 0:00:04]} 51. Qc3 {[%emt 0:00:00]} Qh2+ {[%emt 0:00:16]} 52. Kf1 {[%emt 0:00:00]} Qh1+ {[%emt 0:00:56]} 53. Kf2 {[%emt 0:00:00]} Be7 {[%emt 0:00:37]} 54. Qe3 {[%emt 0:00:00]} Bh4+ {[%emt 0:01:41]} 55. Ke2 {[%emt 0:00:00]} Qg2+ {[%emt 0:00:46]} 56. Kd3 {[%emt 0:00:00]} g3 {[%emt 0:00:22] Kd4} 0-1

[Event "Biel Master Tournament 2019"]
[Site "Biel"]
[Date "2019.07.31"]
[Round "9.12"]
[White "Mastrovasilis, Athanasios"]
[Black "Gukesh D"]
[Result "1-0"]
[ECO "E12"]
[WhiteElo "2518"]
[BlackElo "2520"]
[Annotator "ChessBase"]
[PlyCount "70"]
[EventDate "2019.07.20"]
[EventType "swiss"]
[EventCountry "SUI"]
[SourceTitle "playchess.com"]
[Source "ChessBase"]
[SourceQuality "1"]
[TimeControl "40/5400+30:1800+30"]

1. d4 {[%emt 0:01:37]} Nf6 {[%emt 0:00:10]} 2. Nf3 {[%emt 0:00:44]} e6 {[%emt 0:02:05]} 3. c4 {[%emt 0:04:46]} b6 {[%emt 0:04:41]} 4. Nc3 {[%emt 0:02:43]} Bb7 {[%emt 0:00:12]} 5. Bg5 {[%emt 0:06:11]} h6 {[%emt 0:11:05]} 6. Bh4 {[%emt 0:10:21]} Be7 {[%emt 0:18:45]} 7. Qc2 {[%emt 0:14:36]} c5 {[%emt 0:16:02]} 8. dxc5 {[%emt 0:15:10]} bxc5 {[%emt 0:01:27]} 9. e3 {[%emt 0:01:00]} O-O {[%emt 0:01:08]} 10. Be2 {[%emt 0:00:42]} Nh5 {[%emt 0:02:01]} 11. Bxe7 {[%emt 0:01:38]} Qxe7 {[%emt 0:00:02]} 12. g4 {[%emt 0:07:51]} Nf6 {[%emt 0:02:39]} 13. Rg1 {[%emt 0:03:17]} d5 {[%emt 0:11:12]} 14. cxd5 {[%emt 0:14:24]} exd5 {[%emt 0:01:51]} 15. Qf5 {[%emt 0:01:31]} Qe6 {[%emt 0:10:10]} 16. Nh4 {[%emt 0:02:04]} g5 {[%emt 0:02:48]} 17. Qxe6 {[%emt 0:01:24]} fxe6 {[%emt 0:00:47]} 18. Ng6 {[%emt 0:00:06]} Rd8 {[%emt 0:00:55]} 19. Nb5 {[%emt 0:01:36]} Nc6 {[%emt 0:04:26]} 20. Nc7 {[%emt 0:02:41]} Kf7 {[%emt 0:03:00]} 21. Nxa8 {[%emt 0:00:28]} Bxa8 {[%emt 0:01:17]} 22. Bd3 {[%emt 0:00:22]} Ne4 {[%emt 0:03:12]} 23. f3 {[%emt 0:00:51]} c4 {[%emt 0:00:14]} 24. Bc2 {[%emt 0:00:53]} Nc5 {[%emt 0:00:56]} 25. f4 {[%emt 0:01:03]} d4 {[%emt 0:00:43]} 26. exd4 {[%emt 0:00:29]} Nxd4 {[%emt 0:00:26]} 27. O-O-O {[%emt 0:01:22]} gxf4 {[%emt 0:00:41]} 28. Nxf4 {[%emt 0:01:30]} e5 {[%emt 0:00:31]} 29. Ng6 {[%emt 0:00:33]} Rd5 {[%emt 0:00:30]} 30. Nxe5+ {[%emt 0:00:32]} Ke6 {[%emt 0:00:20]} 31. Ng6 {[%emt 0:01:07]} Ne2+ {[%emt 0:00:25]} 32. Kb1 {[%emt 0:00:01]} Nd3 {[%emt 0:00:21]} 33. Rge1 {[%emt 0:00:51]} Nxe1 {[%emt 0:00:47]} 34. Rxe1 {[%emt 0:00:01]} Rd2 {[%emt 0:00:21]} 35. Rxe2+ {[%emt 0:00:08]} Kd5 {[%emt 0:00:27]} 1-0

[Event "Biel Master Tournament 2019"]
[Site "Biel"]
[Date "2019.07.31"]
[Round "9.13"]
[White "Santos Latasa, Jaime"]
[Black "Aditya Mittal"]
[Result "1-0"]
[ECO "B90"]
[WhiteElo "2594"]
[BlackElo "2429"]
[Annotator "RC"]
[PlyCount "89"]
[EventDate "2019.07.20"]
[EventType "swiss"]
[EventCountry "SUI"]
[SourceTitle "playchess.com"]
[Source "ChessBase"]
[SourceQuality "1"]
[TimeControl "40/5400+30:1800+30"]

1. e4 {[%emt 0:00:00]} c5 {[%emt 0:00:00]} 2. Nf3 {[%emt 0:00:00]} d6 {[%emt 0:00:00]} 3. d4 {[%emt 0:00:00]} cxd4 {[%emt 0:00:00]} 4. Nxd4 {[%emt 0:00:00]} Nf6 {[%emt 0:00:05]} 5. Nc3 {[%emt 0:00:00]} a6 {[%emt 0:00:06]} 6. h4 {[%emt 0:00:08]} e5 {[%emt 0:03:39]} 7. Nb3 {[%emt 0:00:07]} Be6 {[%emt 0:02:45]} 8. f4 {[%emt 0:00:10]} exf4 {[%emt 0:08:36]} 9. Bxf4 {[%emt 0:00:54]} Nc6 {[%emt 0:00:31]} 10. Qd2 {[%emt 0:00:05]} d5 {[%emt 0:05:11]} 11. O-O-O {[%emt 0:01:21]} Bb4 {[%emt 0:10:33]} 12. Bg5 {[%emt 0:00:49]} d4 {[%emt 0:12:52]} 13. Nxd4 {[%emt 0:07:10]} Qxd4 {[%emt 0:01:04]} 14. Qxd4 {[%emt 0:00:08]} Nxd4 {[%emt 0:00:01]} 15. Rxd4 {[%emt 0:00:20]} Bxc3 {[%emt 0:00:08]} 16. bxc3 {[%emt 0:00:06]} Rc8 {[%emt 0:01:18]} 17. Kd2 {[%emt 0:02:44]} Nd7 {[%emt 0:08:44]} 18. a4 {[%emt 0:02:09]} Ne5 {[%emt 0:04:09]} 19. Bd3 {[%emt 0:01:03]} Nc4+ {[%emt 0:04:16]} 20. Ke2 {[%emt 0:01:33]} f6 {[%emt 0:04:01]} 21. Bf4 {[%emt 0:01:58]} O-O {[%emt 0:03:03]} 22. Rb1 {[%emt 0:02:38]} Rf7 {[%emt 0:01:28]} 23. Rb4 {[%emt 0:02:51]} Na5 {[%emt 0:03:56]} 24. Rb6 {[%emt 0:02:06]} Rc6 {[%emt 0:04:08]} 25. Rb1 {[%emt 0:05:42]} h5 {[%emt 0:03:14]} 26. Rd8+ {[%emt 0:02:41]} Kh7 {[%emt 0:02:12]} 27. e5+ {[%emt 0:00:46]} f5 {[%emt 0:04:08]} 28. Rd6 {[%emt 0:01:16]} g6 {[%emt 0:02:32]} 29. Rb4 {[%emt 0:01:41]} Rxd6 {[%emt 0:03:02]} 30. exd6 {[%emt 0:00:11]} Rd7 {[%emt 0:00:04]} 31. c4 {[%emt 0:03:16]} Kg7 {[%emt 0:01:47]} 32. c5 {[%emt 0:00:52]} Kf7 {[%emt 0:00:16]} 33. Kd2 {[%emt 0:00:17]} Bd5 {[%emt 0:01:29]} 34. g3 {[%emt 0:00:18]} Be6 {[%emt 0:03:43]} 35. Rb1 {[%emt 0:01:21]} Bd5 {[%emt 0:00:48]} 36. Kc3 {[%emt 0:00:14]} Be6 {[%emt 0:00:11]} 37. Rd1 {[%emt 0:02:54]} Rd8 {[%emt 0:00:53]} 38. Bf1 {[%emt 0:00:43]} Ke8 {[%emt 0:01:26]} 39. Bg2 {[%emt 0:01:37]} Rc8 {[%emt 0:00:43]} 40. Kd4 {[%emt 0:00:47]} Nc6+ {[%emt 0:01:03]} 41. Bxc6+ {[%emt 0:30:18]} Rxc6 {[%emt 0:30:12]} 42. Rb1 {[%emt 0:00:04]} Kd8 {[%emt 0:00:00]} 43. Rxb7 {[%emt 0:00:00]} Bd7 {[%emt 0:00:00]} 44. Rb8+ {[%emt 0:00:00]} Rc8 {[%emt 0:00:00]} 45. Bg5+ {[%emt 0:00:00]} 1-0

[Event "Biel Master Tournament 2019"]
[Site "Biel"]
[Date "2019.07.31"]
[Round "9.15"]
[White "Keymer, Vincent"]
[Black "Rahul Srivatshav P"]
[Result "1-0"]
[ECO "A62"]
[WhiteElo "2513"]
[BlackElo "2414"]
[Annotator "ChessBase"]
[PlyCount "79"]
[EventDate "2019.07.20"]
[EventType "swiss"]
[EventCountry "SUI"]
[SourceTitle "playchess.com"]
[Source "ChessBase"]
[SourceQuality "1"]
[TimeControl "40/5400+30:1800+30"]

1. d4 {[%emt 0:00:00]} Nf6 {[%emt 0:04:44]} 2. c4 {[%emt 0:00:00]} g6 {[%emt 0:00:45]} 3. g3 {[%emt 0:00:00]} Bg7 {[%emt 0:00:06]} 4. Bg2 {[%emt 0:00:00]} O-O {[%emt 0:00:07]} 5. Nc3 {[%emt 0:00:04]} d6 {[%emt 0:00:06]} 6. Nf3 {[%emt 0:00:04]} c5 {[%emt 0:00:05]} 7. d5 {[%emt 0:00:58]} e6 {[%emt 0:00:09]} 8. O-O {[%emt 0:07:49]} exd5 {[%emt 0:01:27]} 9. cxd5 {[%emt 0:00:08]} Re8 {[%emt 0:00:05]} 10. Re1 {[%emt 0:01:43]} a6 {[%emt 0:05:44]} 11. a4 {[%emt 0:00:16]} Ne4 {[%emt 0:00:10]} 12. Ra3 {[%emt 0:03:33]} Nd7 {[%emt 0:07:06]} 13. Bf4 {[%emt 0:10:49]} Ndf6 {[%emt 0:13:54]} 14. h3 {[%emt 0:10:03]} Rb8 {[%emt 0:03:10]} 15. a5 {[%emt 0:12:12]} b5 {[%emt 0:08:20]} 16. axb6 {[%emt 0:00:08]} Qxb6 {[%emt 0:00:32]} 17. Nd2 {[%emt 0:03:48]} Nxd2 {[%emt 0:06:57]} 18. Qxd2 {[%emt 0:05:52]} Nh5 {[%emt 0:01:21]} 19. Bg5 {[%emt 0:01:49]} f6 {[%emt 0:11:45]} 20. Be3 {[%emt 0:04:03]} f5 {[%emt 0:00:17]} 21. Nd1 {[%emt 0:09:11]} Nf6 {[%emt 0:07:16]} 22. Qc2 {[%emt 0:03:12]} Ne4 {[%emt 0:00:54]} 23. Bc1 {[%emt 0:02:10]} Bd4 {[%emt 0:06:51]} 24. e3 {[%emt 0:02:16]} Bg7 {[%emt 0:01:30]} 25. Nc3 {[%emt 0:03:29]} Nxc3 {[%emt 0:04:18]} 26. bxc3 {[%emt 0:00:05]} Qb1 {[%emt 0:01:52]} 27. Qa4 {[%emt 0:00:55]} Qb5 {[%emt 0:03:02]} 28. Qd1 {[%emt 0:00:07]} Bd7 {[%emt 0:02:26]} 29. Bd2 {[%emt 0:05:01]} a5 {[%emt 0:01:43]} 30. c4 {[%emt 0:01:07]} Qxc4 {[%emt 0:00:05]} 31. Rxa5 {[%emt 0:00:17]} Rb2 {[%emt 0:01:31]} 32. Ra7 {[%emt 0:01:09]} Re7 {[%emt 0:00:31]} 33. Bf1 {[%emt 0:02:19]} Qc2 {[%emt 0:02:32]} 34. Qxc2 {[%emt 0:01:13]} Rxc2 {[%emt 0:00:04]} 35. Ba5 {[%emt 0:00:12]} Ra2 {[%emt 0:05:21]} 36. Rb1 {[%emt 0:01:17]} Bc3 {[%emt 0:00:34]} 37. Rxd7 {[%emt 0:00:20]} Rxd7 {[%emt 0:00:03]} 38. Bxc3 {[%emt 0:00:04]} Ra8 {[%emt 0:00:19]} 39. Rb6 {[%emt 0:00:27]} Rad8 {[%emt 0:00:22]} 40. Bb5 {[%emt 0:01:06]} 1-0

[Event "Biel Master Tournament 2019"]
[Site "Biel"]
[Date "2019.07.31"]
[Round "9.16"]
[White "Notkevich, Benjamin Arvola"]
[Black "Tania, Sachdev"]
[Result "1-0"]
[ECO "A29"]
[WhiteElo "2497"]
[BlackElo "2401"]
[Annotator "ChessBase"]
[PlyCount "135"]
[EventDate "2019.07.20"]
[EventType "swiss"]
[EventCountry "SUI"]
[SourceTitle "playchess.com"]
[Source "ChessBase"]
[SourceQuality "1"]
[TimeControl "40/5400+30:1800+30"]

1. c4 {[%emt 0:02:38]} e5 {[%emt 0:00:00]} 2. g3 {[%emt 0:00:08]} Nf6 {[%emt 0:00:00]} 3. Bg2 {[%emt 0:00:06]} d5 {[%emt 0:00:10]} 4. cxd5 {[%emt 0:00:06]} Nxd5 {[%emt 0:00:03]} 5. Nc3 {[%emt 0:00:08]} Nb6 {[%emt 0:00:19]} 6. Nf3 {[%emt 0:00:07]} Nc6 {[%emt 0:00:04]} 7. O-O {[%emt 0:00:10]} Be7 {[%emt 0:00:42]} 8. Rb1 {[%emt 0:00:12]} a5 {[%emt 0:02:39]} 9. d3 {[%emt 0:00:12]} Be6 {[%emt 0:02:12]} 10. Be3 {[%emt 0:00:13]} O-O {[%emt 0:11:28]} 11. Rc1 {[%emt 0:00:07]} Nd5 {[%emt 0:01:13]} 12. Nxd5 {[%emt 0:00:12]} Bxd5 {[%emt 0:00:07]} 13. Qa4 {[%emt 0:00:35]} Bd6 {[%emt 0:14:16]} 14. a3 {[%emt 0:13:12]} Ne7 {[%emt 0:09:46]} 15. Nd2 {[%emt 0:26:24]} Bxg2 {[%emt 0:02:06]} 16. Kxg2 {[%emt 0:00:07]} Nd5 {[%emt 0:08:05]} 17. Qb5 {[%emt 0:09:48]} Nxe3+ {[%emt 0:12:15]} 18. fxe3 {[%emt 0:00:07]} Qe7 {[%emt 0:04:18]} 19. Ne4 {[%emt 0:07:22]} f5 {[%emt 0:11:51]} 20. Nxd6 {[%emt 0:13:14]} cxd6 {[%emt 0:00:17]} 21. Rc2 {[%emt 0:00:21]} h6 {[%emt 0:02:43]} 22. Rfc1 {[%emt 0:02:47]} Qg5 {[%emt 0:02:59]} 23. Qd5+ {[%emt 0:11:10]} Kh7 {[%emt 0:06:22]} 24. Qxd6 {[%emt 0:00:10]} Qxe3 {[%emt 0:00:07]} 25. Qc5 {[%emt 0:00:20]} f4 {[%emt 0:02:15]} 26. Rf1 {[%emt 0:02:34]} f3+ {[%emt 0:00:30]} 27. exf3 {[%emt 0:01:39]} Qxd3 {[%emt 0:00:10]} 28. Rc3 {[%emt 0:00:33]} Qd7 {[%emt 0:02:57]} 29. Re3 {[%emt 0:01:18]} Rfc8 {[%emt 0:02:48]} 30. Qxe5 {[%emt 0:04:42]} Re8 {[%emt 0:00:04]} 31. Qc3 {[%emt 0:00:05]} Rac8 {[%emt 0:00:06]} 32. Qe1 {[%emt 0:00:41]} Rxe3 {[%emt 0:02:34]} 33. Qxe3 {[%emt 0:00:06]} Re8 {[%emt 0:00:12]} 34. Qf2 {[%emt 0:00:51]} Qb5 {[%emt 0:00:42]} 35. Qc2+ {[%emt 0:00:14]} Kh8 {[%emt 0:00:06]} 36. Rf2 {[%emt 0:00:09]} a4 {[%emt 0:00:55]} 37. h4 {[%emt 0:00:25]} Re1 {[%emt 0:00:23]} 38. Qd2 {[%emt 0:00:56]} Qe8 {[%emt 0:00:40]} 39. Qd3 {[%emt 0:01:03]} Re3 {[%emt 0:00:15]} 40. Qd5 {[%emt 0:00:51]} b5 {[%emt 0:00:47]} 41. Qd4 {[%emt 0:33:56]} Qe6 {[%emt 0:08:12]} 42. h5 {[%emt 0:00:00]} Qe8 {[%emt 0:06:03]} 43. g4 {[%emt 0:00:00]} Re1 {[%emt 0:01:21]} 44. Rd2 {[%emt 0:00:00]} Re2+ {[%emt 0:00:31]} 45. Rxe2 {[%emt 0:00:00]} Qxe2+ {[%emt 0:00:02]} 46. Kg3 {[%emt 0:00:00]} Qe1+ {[%emt 0:00:51]} 47. Kf4 {[%emt 0:00:00]} Qe2 {[%emt 0:00:24]} 48. Qc3 {[%emt 0:00:00]} Qe6 {[%emt 0:01:44]} 49. Qe5 {[%emt 0:00:00]} Qc4+ {[%emt 0:02:08]} 50. Kg3 {[%emt 0:00:00]} Qf1 {[%emt 0:00:28]} 51. Qe8+ {[%emt 0:00:00]} Kh7 {[%emt 0:00:03]} 52. Qe3 {[%emt 0:00:00]} Kh8 {[%emt 0:00:21]} 53. f4 {[%emt 0:00:00]} Qc4 {[%emt 0:03:25]} 54. g5 {[%emt 0:00:00]} hxg5 {[%emt 0:00:09]} 55. fxg5 {[%emt 0:00:00]} Qd5 {[%emt 0:02:21]} 56. g6 {[%emt 0:00:00]} Qd6+ {[%emt 0:00:04]} 57. Kf2 {[%emt 0:00:00]} Qd7 {[%emt 0:02:14]} 58. Qe5 {[%emt 0:00:00]} Qd2+ {[%emt 0:00:33]} 59. Kf3 {[%emt 0:00:00]} Qd3+ {[%emt 0:01:34]} 60. Kf4 {[%emt 0:00:00]} Qf1+ {[%emt 0:04:01]} 61. Ke4 {[%emt 0:00:00]} Qc4+ {[%emt 0:00:18]} 62. Ke3 {[%emt 0:00:00]} Qc1+ {[%emt 0:00:14]} 63. Kd3 {[%emt 0:00:00]} Qd1+ {[%emt 0:02:22]} 64. Ke4 {[%emt 0:00:00]} Qg4+ {[%emt 0:02:25]} 65. Kd5 {[%emt 0:00:00]} Qc8 {[%emt 0:00:05]} 66. h6 {[%emt 0:00:00]} Qc4+ {[%emt 0:00:04]} 67. Kd6 {[%emt 0:00:00]} Qd3+ {[%emt 0:00:12]} 68. Ke7 {[%emt 0:00:33]} 1-0

[Event "Biel Master Tournament 2019"]
[Site "Biel"]
[Date "2019.07.31"]
[Round "9.17"]
[White "Harsha, Bharathakoti"]
[Black "Zemach, Roee"]
[Result "1/2-1/2"]
[ECO "D30"]
[WhiteElo "2319"]
[BlackElo "2243"]
[Annotator "NA"]
[PlyCount "103"]
[EventDate "2019.07.20"]
[EventType "swiss"]
[EventCountry "SUI"]
[SourceTitle "playchess.com"]
[Source "ChessBase"]
[SourceQuality "1"]
[TimeControl "40/5400+30:1800+30"]

1. c4 {[%emt 0:00:42]} e6 {[%emt 0:00:21]} 2. d4 {[%emt 0:00:54]} Nf6 {[%emt 0:00:35]} 3. Nf3 {[%emt 0:00:33]} d5 {[%emt 0:01:02]} 4. Bg5 {[%emt 0:00:28]} Be7 {[%emt 0:01:15]} 5. e3 {[%emt 0:00:07]} O-O {[%emt 0:00:56]} 6. Qc2 {[%emt 0:00:48]} h6 {[%emt 0:02:30]} 7. Bxf6 {[%emt 0:01:07]} Bxf6 {[%emt 0:00:22]} 8. h4 {[%emt 0:00:02]} c5 {[%emt 0:05:57]} 9. g4 {[%emt 0:00:14]} g6 {[%emt 0:10:36]} 10. dxc5 {[%emt 0:11:32]} Na6 {[%emt 0:07:15]} 11. Nc3 {[%emt 0:00:59]} Qa5 {[%emt 0:04:06]} 12. Rc1 {[%emt 0:11:42]} dxc4 {[%emt 0:10:52]} 13. Bxc4 {[%emt 0:04:23]} b5 {[%emt 0:03:56]} 14. cxb6 {[%emt 0:10:05]} Bb7 {[%emt 0:00:42]} 15. Qe2 {[%emt 0:04:14]} axb6 {[%emt 0:01:37]} 16. g5 {[%emt 0:04:41]} Qf5 {[%emt 0:09:08]} 17. e4 {[%emt 0:00:27]} Qf4 {[%emt 0:00:32]} 18. Qe3 {[%emt 0:01:32]} Qxe3+ {[%emt 0:01:30]} 19. fxe3 {[%emt 0:00:04]} Bxc3+ {[%emt 0:00:12]} 20. Rxc3 {[%emt 0:00:04]} Bxe4 {[%emt 0:00:25]} 21. Ke2 {[%emt 0:06:27]} hxg5 {[%emt 0:08:35]} 22. hxg5 {[%emt 0:00:17]} Nb4 {[%emt 0:01:15]} 23. Rh4 {[%emt 0:02:44]} Bxf3+ {[%emt 0:06:22]} 24. Kxf3 {[%emt 0:00:03]} Ra5 {[%emt 0:01:58]} 25. a3 {[%emt 0:02:00]} Nc6 {[%emt 0:00:43]} 26. Ke2 {[%emt 0:13:27]} Ne7 {[%emt 0:02:58]} 27. Rg4 {[%emt 0:09:01]} Rc8 {[%emt 0:00:16]} 28. Rb3 {[%emt 0:01:01]} Rc6 {[%emt 0:02:33]} 29. Bd3 {[%emt 0:03:55]} Re5 {[%emt 0:00:20]} 30. Kf3 {[%emt 0:04:38]} Kg7 {[%emt 0:02:20]} 31. Rb5 {[%emt 0:02:06]} Rxb5 {[%emt 0:02:41]} 32. Bxb5 {[%emt 0:00:05]} Rc5 {[%emt 0:00:11]} 33. a4 {[%emt 0:00:20]} Kf8 {[%emt 0:01:59]} 34. Rg2 {[%emt 0:03:22]} Rf5+ {[%emt 0:01:23]} 35. Ke4 {[%emt 0:00:18]} Nd5 {[%emt 0:01:31]} 36. Kd4 {[%emt 0:00:41]} Nc7 {[%emt 0:00:39]} 37. Bc4 {[%emt 0:00:45]} Ra5 {[%emt 0:00:58]} 38. b3 {[%emt 0:00:38]} Ke7 {[%emt 0:00:27]} 39. e4 {[%emt 0:00:45]} b5 {[%emt 0:03:50]} 40. axb5 {[%emt 0:02:18]} Nxb5+ {[%emt 0:00:11]} 41. Bxb5 {[%emt 0:05:02]} Rxb5 {[%emt 0:00:08]} 42. Kc4 {[%emt 0:00:04]} Re5 {[%emt 0:01:01]} 43. Rg4 {[%emt 0:00:25]} Kd6 {[%emt 0:05:38]} 44. b4 {[%emt 0:00:27]} Kc6 {[%emt 0:01:08]} 45. Kd4 {[%emt 0:01:11]} Rb5 {[%emt 0:01:43]} 46. Kc4 {[%emt 0:02:10]} Re5 {[%emt 0:00:13]} 47. Kd4 {[%emt 0:00:14]} Rb5 {[%emt 0:00:08]} 48. Rg3 {[%emt 0:00:33]} Kd6 {[%emt 0:01:06]} 49. Kc4 {[%emt 0:00:07]} Re5 {[%emt 0:00:11]} 50. Kd4 {[%emt 0:01:32]} Rb5 {[%emt 0:00:08]} 51. Kc4 {[%emt 0:00:03]} Re5 {[%emt 0:00:11]} 52. Kd4 {[%emt 0:00:03]} 1/2-1/2